[Event "Titled Tuesday Blitz April 12 Early 2022"]
[White "Antonio, Jorge Carlos"]
[Black "Namitbir Singh Walia"]
[WhiteFideId "113190"]
[BlackFideId "35071068"]
[WhiteElo "2247"]
[BlackElo "1565"]
[Result "0-1"]
[Round "03"]
[TimeControl "180+1"]
[Date "2022.04.13"]
[WhiteClock "0:00:02"]
[BlackClock "0:00:03"]

1. e4 {[%clk 0:03:00]}  c5 {[%clk 0:02:59]} 2. c3 {[%clk 0:03:00]}  d5 {[%clk 0:02:57]} 3. exd5 {[%clk 0:02:59]}  Qxd5 {[%clk 0:02:58]} 4. d4 {[%clk 0:02:57]}  Nf6 {[%clk 0:02:56]} 5. Nf3 {[%clk 0:02:52]}  Nc6 {[%clk 0:02:53]} 6. Be3 {[%clk 0:02:51]}  cxd4 {[%clk 0:02:44]} 7. cxd4 {[%clk 0:02:48]}  Bg4 {[%clk 0:02:37]} 8. Nc3 {[%clk 0:02:47]}  Qa5 {[%clk 0:02:34]} 9. Bb5 {[%clk 0:02:41]}  e6 {[%clk 0:02:07]} 10. h3 {[%clk 0:02:38]}  Bh5 {[%clk 0:01:58]} 11. O-O {[%clk 0:02:33]}  Bb4 {[%clk 0:01:51]} 12. Bxc6+ {[%clk 0:02:24]}  bxc6 {[%clk 0:01:50]} 13. Rc1 {[%clk 0:02:20]}  O-O {[%clk 0:01:50]} 14. g4 {[%clk 0:02:15]}  Nxg4 {[%clk 0:01:31]} 15. hxg4 {[%clk 0:02:12]}  Bxg4 {[%clk 0:01:32]} 16. Kg2 {[%clk 0:02:07]}  Qf5 {[%clk 0:01:15]} 17. Nh4 {[%clk 0:02:01]}  Qh5 {[%clk 0:00:57]} 18. f3 {[%clk 0:01:48]}  Qxh4 {[%clk 0:00:51]} 19. fxg4 {[%clk 0:01:47]}  f5 {[%clk 0:00:47]} 20. Rh1 {[%clk 0:01:43]}  Qf6 {[%clk 0:00:40]} 21. g5 {[%clk 0:01:39]}  Qg6 {[%clk 0:00:36]} 22. Qh5 {[%clk 0:01:34]}  f4 {[%clk 0:00:35]} 23. Qxg6 {[%clk 0:01:30]}  hxg6 {[%clk 0:00:36]} 24. Bf2 {[%clk 0:01:28]}  f3+ {[%clk 0:00:19]} 25. Kf1 {[%clk 0:01:22]}  Rf4 {[%clk 0:00:09]} 26. a3 {[%clk 0:01:19]}  Bd6 {[%clk 0:00:06]} 27. b4 {[%clk 0:01:12]}  a5 {[%clk 0:00:06]} 28. b5 {[%clk 0:01:10]}  Bxa3 {[%clk 0:00:05]} 29. Rb1 {[%clk 0:01:04]}  Bb4 {[%clk 0:00:05]} 30. Na2 {[%clk 0:00:57]}  cxb5 {[%clk 0:00:04]} 31. Nxb4 {[%clk 0:00:56]}  axb4 {[%clk 0:00:05]} 32. Be1 {[%clk 0:00:47]}  Ra2 {[%clk 0:00:05]} 33. Bxb4 {[%clk 0:00:45]}  f2 {[%clk 0:00:05]} 34. Bc5 {[%clk 0:00:43]}  Rc2 {[%clk 0:00:04]} 35. Rh2 {[%clk 0:00:42]}  Rf5 {[%clk 0:00:02]} 36. Be7 {[%clk 0:00:37]}  Rf4 {[%clk 0:00:01]} 37. Bc5 {[%clk 0:00:35]}  Kf7 {[%clk 0:00:02]} 38. d5 {[%clk 0:00:32]}  exd5 {[%clk 0:00:02]} 39. Rxf2 {[%clk 0:00:29]}  Rcxf2+ {[%clk 0:00:03]} 40. Bxf2 {[%clk 0:00:28]}  b4 {[%clk 0:00:04]} 41. Ke2 {[%clk 0:00:26]}  Ke6 {[%clk 0:00:05]} 42. Be3 {[%clk 0:00:26]}  Re4 {[%clk 0:00:05]} 43. Kd3 {[%clk 0:00:26]}  Rg4 {[%clk 0:00:04]} 44. Ra1 {[%clk 0:00:25]}  Ke5 {[%clk 0:00:05]} 45. Ra8 {[%clk 0:00:24]}  Rg3 {[%clk 0:00:04]} 46. Re8+ {[%clk 0:00:23]}  Kf5 {[%clk 0:00:04]} 47. Rd8 {[%clk 0:00:22]}  Ke6 {[%clk 0:00:04]} 48. Re8+ {[%clk 0:00:22]}  Kf5 {[%clk 0:00:04]} 49. Rd8 {[%clk 0:00:22]}  Ke6 {[%clk 0:00:04]} 50. Rb8 {[%clk 0:00:19]}  Ke5 {[%clk 0:00:02]} 51. Rxb4 {[%clk 0:00:19]}  Rf3 {[%clk 0:00:01]} 52. Rd4 {[%clk 0:00:18]}  Rg3 {[%clk 0:00:01]} 53. Rb4 {[%clk 0:00:17]}  Ke6 {[%clk 0:00:02]} 54. Rb6+ {[%clk 0:00:17]}  Kf5 {[%clk 0:00:03]} 55. Rb8 {[%clk 0:00:16]}  Ke5 {[%clk 0:00:04]} 56. Re8+ {[%clk 0:00:16]}  Kd6 {[%clk 0:00:04]} 57. Rg8 {[%clk 0:00:15]}  Ke5 {[%clk 0:00:04]} 58. Rxg7 {[%clk 0:00:14]}  d4 {[%clk 0:00:04]} 59. Re7+ {[%clk 0:00:13]}  Kd6 {[%clk 0:00:05]} 60. Rg7 {[%clk 0:00:05]}  Rxe3+ {[%clk 0:00:03]} 61. Kxd4 {[%clk 0:00:05]}  Re6 {[%clk 0:00:03]} 62. Rg8 {[%clk 0:00:03]}  Kc6 {[%clk 0:00:03]} 63. Rd8 {[%clk 0:00:01]}  Kc7 {[%clk 0:00:04]} 64. Rd5 {[%clk 0:00:01]}  Kc6 {[%clk 0:00:03]} 65. Ra5 {[%clk 0:00:01]}  Kd7 {[%clk 0:00:03]} 66. Kd3 {[%clk 0:00:01]}  Kc8 {[%clk 0:00:03]} 67. Kd4 {[%clk 0:00:02]}  Rb6 {[%clk 0:00:03]} 0-1


[Site "https://www.chess.com"]

[Event "Titled Tuesday Blitz April 12 Early 2022"]
[White "Aslanov, Umid"]
[Black "Cabarkapa, Novak"]
[WhiteFideId "13412620"]
[BlackFideId "943746"]
[WhiteElo "1796"]
[BlackElo "2443"]
[Result "1-0"]
[Round "03"]
[TimeControl "180+1"]
[Date "2022.04.13"]
[WhiteClock "0:00:11"]
[BlackClock "0:00:30"]

1. e4 {[%clk 0:03:00]}  d5 {[%clk 0:02:58]} 2. exd5 {[%clk 0:03:01]}  Qxd5 {[%clk 0:02:59]} 3. Nc3 {[%clk 0:03:01]}  Qd6 {[%clk 0:02:59]} 4. d4 {[%clk 0:03:01]}  Nf6 {[%clk 0:03:00]} 5. Nf3 {[%clk 0:03:01]}  g6 {[%clk 0:03:00]} 6. Be2 {[%clk 0:02:59]}  Bg7 {[%clk 0:02:59]} 7. O-O {[%clk 0:03:00]}  a6 {[%clk 0:02:59]} 8. h3 {[%clk 0:03:00]}  b5 {[%clk 0:02:58]} 9. a3 {[%clk 0:02:59]}  Bb7 {[%clk 0:02:58]} 10. Be3 {[%clk 0:03:00]}  O-O {[%clk 0:02:55]} 11. Ne5 {[%clk 0:02:57]}  Nbd7 {[%clk 0:02:49]} 12. Bf4 {[%clk 0:02:52]}  Qb6 {[%clk 0:02:48]} 13. Bf3 {[%clk 0:02:43]}  Rad8 {[%clk 0:02:45]} 14. Bxb7 {[%clk 0:02:37]}  Qxb7 {[%clk 0:02:46]} 15. Qe2 {[%clk 0:02:27]}  e6 {[%clk 0:02:41]} 16. Nxd7 {[%clk 0:02:22]}  Rxd7 {[%clk 0:02:41]} 17. Be5 {[%clk 0:02:18]}  Rc8 {[%clk 0:02:34]} 18. Rad1 {[%clk 0:02:13]}  c5 {[%clk 0:02:34]} 19. dxc5 {[%clk 0:02:03]}  Rxc5 {[%clk 0:02:34]} 20. Bxf6 {[%clk 0:02:04]}  Bxf6 {[%clk 0:02:30]} 21. Ne4 {[%clk 0:02:01]}  Rf5 {[%clk 0:02:26]} 22. g4 {[%clk 0:01:37]}  Rxd1 {[%clk 0:02:19]} 23. Rxd1 {[%clk 0:01:34]}  Rf4 {[%clk 0:02:20]} 24. Nxf6+ {[%clk 0:01:30]}  Rxf6 {[%clk 0:02:20]} 25. Rd8+ {[%clk 0:01:27]}  Kg7 {[%clk 0:02:19]} 26. Qe5 {[%clk 0:01:15]}  Qf3 {[%clk 0:02:13]} 27. Qd4 {[%clk 0:01:13]}  e5 {[%clk 0:02:06]} 28. Qc5 {[%clk 0:01:11]}  Kh6 {[%clk 0:01:55]} 29. Rd5 {[%clk 0:01:05]}  Qxh3 {[%clk 0:01:29]} 30. g5+ {[%clk 0:00:57]}  Kxg5 {[%clk 0:01:27]} 31. Rxe5+ {[%clk 0:00:58]}  Rf5 {[%clk 0:01:14]} 32. Qe7+ {[%clk 0:00:56]}  Kh5 {[%clk 0:01:12]} 33. Re3 {[%clk 0:00:48]}  Qg4+ {[%clk 0:01:04]} 34. Rg3 {[%clk 0:00:48]}  Qd1+ {[%clk 0:01:04]} 35. Kg2 {[%clk 0:00:42]}  Qd5+ {[%clk 0:01:04]} 36. Kg1 {[%clk 0:00:39]}  Rg5 {[%clk 0:00:54]} 37. Qe2+ {[%clk 0:00:34]}  Kh4 {[%clk 0:00:54]} 38. Kh2 {[%clk 0:00:29]}  Rxg3 {[%clk 0:00:50]} 39. fxg3+ {[%clk 0:00:30]}  Kg5 {[%clk 0:00:51]} 40. Qe3+ {[%clk 0:00:31]}  Kh5 {[%clk 0:00:43]} 41. Qf4 {[%clk 0:00:23]}  g5 {[%clk 0:00:40]} 42. Qe3 {[%clk 0:00:14]}  Kg4 {[%clk 0:00:36]} 43. b3 {[%clk 0:00:13]}  f5 {[%clk 0:00:34]} 44. a4 {[%clk 0:00:10]}  bxa4 {[%clk 0:00:33]} 45. bxa4 {[%clk 0:00:11]}  h5 {[%clk 0:00:31]} 46. Qe2+ {[%clk 0:00:11]}  Qf3 {[%clk 0:00:30]} 47. Qc4+ {[%clk 0:00:10]}  f4 {[%clk 0:00:30]} 48. Qe6# {[%clk 0:00:11]} 1-0


[Site "https://www.chess.com"]

[Event "Titled Tuesday Blitz April 12 Early 2022"]
[White "Atakhan, Abtin"]
[Black "Zierk, Steven"]
[WhiteFideId "22502203"]
[BlackFideId "2034255"]
[WhiteElo "2094"]
[BlackElo "2494"]
[Result "1-0"]
[Round "03"]
[TimeControl "180+1"]
[Date "2022.04.12"]
[WhiteClock "0:00:26"]
[BlackClock "0:00:30"]

1. c4 {[%clk 0:03:00]}  Nf6 {[%clk 0:02:59]} 2. g3 {[%clk 0:03:00]}  g6 {[%clk 0:03:00]} 3. Bg2 {[%clk 0:03:01]}  Bg7 {[%clk 0:03:00]} 4. Nc3 {[%clk 0:03:02]}  O-O {[%clk 0:03:01]} 5. Nf3 {[%clk 0:03:02]}  c5 {[%clk 0:02:59]} 6. O-O {[%clk 0:03:02]}  d6 {[%clk 0:02:59]} 7. d4 {[%clk 0:03:01]}  Nc6 {[%clk 0:02:59]} 8. dxc5 {[%clk 0:02:57]}  dxc5 {[%clk 0:02:59]} 9. Be3 {[%clk 0:02:55]}  Be6 {[%clk 0:02:58]} 10. Bxc5 {[%clk 0:02:50]}  Qa5 {[%clk 0:02:58]} 11. b4 {[%clk 0:02:42]}  Nxb4 {[%clk 0:02:56]} 12. Bxe7 {[%clk 0:02:41]}  Rfe8 {[%clk 0:02:55]} 13. Bxb4 {[%clk 0:02:19]}  Qxb4 {[%clk 0:02:55]} 14. Nd5 {[%clk 0:01:48]}  Qxc4 {[%clk 0:02:37]} 15. Nxf6+ {[%clk 0:01:46]}  Bxf6 {[%clk 0:02:38]} 16. Rb1 {[%clk 0:01:41]}  Rab8 {[%clk 0:02:35]} 17. Nd2 {[%clk 0:01:19]}  Qxa2 {[%clk 0:02:34]} 18. Ne4 {[%clk 0:01:19]}  Bg7 {[%clk 0:02:19]} 19. Nc5 {[%clk 0:01:11]}  Bc4 {[%clk 0:02:12]} 20. Qd7 {[%clk 0:01:11]}  b6 {[%clk 0:02:10]} 21. Ne4 {[%clk 0:01:03]}  Rbd8 {[%clk 0:02:04]} 22. Qc7 {[%clk 0:00:57]}  Bxe2 {[%clk 0:02:02]} 23. Rfe1 {[%clk 0:00:54]}  Rc8 {[%clk 0:01:31]} 24. Qb7 {[%clk 0:00:50]}  Qa6 {[%clk 0:01:22]} 25. Nd6 {[%clk 0:00:38]}  Bc3 {[%clk 0:00:41]} 26. Qxf7+ {[%clk 0:00:36]}  Kh8 {[%clk 0:00:40]} 27. Nxe8 {[%clk 0:00:36]}  Bc4 {[%clk 0:00:30]} 28. Qf8+ {[%clk 0:00:26]}  Bg8 {[%clk 0:00:30]} 29. Bd5 {[%clk 0:00:26]} 1-0


[Site "https://www.chess.com"]

[Event "Titled Tuesday Blitz April 12 Early 2022"]
[White "Barp, Alberto"]
[Black "Bryakin, Mikhail"]
[WhiteFideId "872555"]
[BlackFideId "4165314"]
[WhiteElo "2229"]
[BlackElo "2417"]
[Result "0-1"]
[Round "03"]
[TimeControl "180+1"]
[Date "2022.04.12"]
[WhiteClock "0:00:56"]
[BlackClock "0:01:29"]

1. d4 {[%clk 0:03:00]}  Nf6 {[%clk 0:02:51]} 2. c4 {[%clk 0:03:00]}  c5 {[%clk 0:02:48]} 3. d5 {[%clk 0:03:00]}  e6 {[%clk 0:02:49]} 4. Nc3 {[%clk 0:02:59]}  exd5 {[%clk 0:02:49]} 5. cxd5 {[%clk 0:03:00]}  d6 {[%clk 0:02:49]} 6. e4 {[%clk 0:03:01]}  g6 {[%clk 0:02:46]} 7. Nge2 {[%clk 0:03:00]}  Bg7 {[%clk 0:02:45]} 8. Ng3 {[%clk 0:03:00]}  O-O {[%clk 0:02:45]} 9. Be2 {[%clk 0:03:00]}  Re8 {[%clk 0:02:45]} 10. O-O {[%clk 0:02:59]}  a6 {[%clk 0:02:44]} 11. a4 {[%clk 0:02:59]}  h5 {[%clk 0:02:40]} 12. Bg5 {[%clk 0:02:58]}  Qc7 {[%clk 0:02:40]} 13. Qd2 {[%clk 0:02:47]}  Nbd7 {[%clk 0:02:37]} 14. f4 {[%clk 0:02:28]}  Nh7 {[%clk 0:02:34]} 15. Bh4 {[%clk 0:02:28]}  b6 {[%clk 0:02:24]} 16. Bxh5 {[%clk 0:02:27]}  gxh5 {[%clk 0:02:24]} 17. Nxh5 {[%clk 0:02:28]}  Bd4+ {[%clk 0:02:22]} 18. Kh1 {[%clk 0:02:27]}  Ndf6 {[%clk 0:02:23]} 19. Nxf6+ {[%clk 0:02:15]}  Bxf6 {[%clk 0:02:23]} 20. Bxf6 {[%clk 0:01:58]}  Nxf6 {[%clk 0:02:24]} 21. e5 {[%clk 0:01:56]}  dxe5 {[%clk 0:02:14]} 22. d6 {[%clk 0:01:55]}  Qd8 {[%clk 0:02:15]} 23. Rae1 {[%clk 0:01:36]}  e4 {[%clk 0:02:06]} 24. f5 {[%clk 0:01:36]}  Bb7 {[%clk 0:01:57]} 25. Qg5+ {[%clk 0:01:32]}  Kh8 {[%clk 0:01:57]} 26. Qh6+ {[%clk 0:01:22]}  Nh7 {[%clk 0:01:57]} 27. f6 {[%clk 0:01:15]}  Rg8 {[%clk 0:01:58]} 28. Rf5 {[%clk 0:01:06]}  Rg6 {[%clk 0:01:53]} 29. Qh4 {[%clk 0:01:05]}  e3 {[%clk 0:01:48]} 30. Re2 {[%clk 0:00:56]}  Rxf6 {[%clk 0:01:29]} 0-1


[Site "https://www.chess.com"]

[Event "Titled Tuesday Blitz April 12 Early 2022"]
[White "Bekturov, Tamerlan"]
[Black "Khamdamova, Afruza"]
[WhiteFideId "13710184"]
[BlackFideId "14210444"]
[WhiteElo "2151"]
[BlackElo "1660"]
[Result "1-0"]
[Round "03"]
[TimeControl "180+1"]
[Date "2022.04.13"]
[WhiteClock "0:00:21"]
[BlackClock "0:00:11"]

1. d4 {[%clk 0:02:54]}  Nf6 {[%clk 0:03:00]} 2. c4 {[%clk 0:02:54]}  e6 {[%clk 0:02:59]} 3. g3 {[%clk 0:02:54]}  d5 {[%clk 0:02:59]} 4. Bg2 {[%clk 0:02:54]}  dxc4 {[%clk 0:02:58]} 5. Nf3 {[%clk 0:02:54]}  c5 {[%clk 0:02:58]} 6. O-O {[%clk 0:02:54]}  Nc6 {[%clk 0:02:57]} 7. dxc5 {[%clk 0:02:54]}  Qxd1 {[%clk 0:02:52]} 8. Rxd1 {[%clk 0:02:55]}  Bxc5 {[%clk 0:02:52]} 9. Nbd2 {[%clk 0:02:55]}  c3 {[%clk 0:02:52]} 10. bxc3 {[%clk 0:02:56]}  O-O {[%clk 0:02:48]} 11. Nb3 {[%clk 0:02:56]}  Bb6 {[%clk 0:02:48]} 12. Nfd4 {[%clk 0:02:56]}  Bd7 {[%clk 0:02:35]} 13. Bg5 {[%clk 0:02:42]}  Rac8 {[%clk 0:02:04]} 14. a4 {[%clk 0:02:34]}  a6 {[%clk 0:01:58]} 15. a5 {[%clk 0:02:06]}  Ba7 {[%clk 0:01:58]} 16. Bxf6 {[%clk 0:02:06]}  gxf6 {[%clk 0:01:57]} 17. Nf5 {[%clk 0:02:05]}  Ne5 {[%clk 0:01:45]} 18. Ne7+ {[%clk 0:02:02]}  Kg7 {[%clk 0:01:44]} 19. Nxc8 {[%clk 0:02:03]}  Rxc8 {[%clk 0:01:45]} 20. e3 {[%clk 0:01:52]}  Rxc3 {[%clk 0:01:42]} 21. Nd4 {[%clk 0:01:45]}  Bc6 {[%clk 0:01:20]} 22. Nxc6 {[%clk 0:01:37]}  bxc6 {[%clk 0:01:19]} 23. Rdc1 {[%clk 0:01:36]}  Rxc1+ {[%clk 0:00:48]} 24. Rxc1 {[%clk 0:01:37]}  c5 {[%clk 0:00:41]} 25. Rb1 {[%clk 0:01:26]}  c4 {[%clk 0:00:33]} 26. Bf1 {[%clk 0:01:20]}  Bc5 {[%clk 0:00:32]} 27. Rc1 {[%clk 0:01:13]}  Ba3 {[%clk 0:00:31]} 28. Rc2 {[%clk 0:01:10]}  Bb4 {[%clk 0:00:30]} 29. Bxc4 {[%clk 0:01:09]}  Nxc4 {[%clk 0:00:30]} 30. Rxc4 {[%clk 0:01:10]}  Bxa5 {[%clk 0:00:30]} 31. Ra4 {[%clk 0:01:11]}  Bc7 {[%clk 0:00:30]} 32. Rxa6 {[%clk 0:01:12]}  Be5 {[%clk 0:00:30]} 33. Kg2 {[%clk 0:01:02]}  f5 {[%clk 0:00:30]} 34. f4 {[%clk 0:01:00]}  Bf6 {[%clk 0:00:30]} 35. Kf3 {[%clk 0:01:01]}  Kg6 {[%clk 0:00:29]} 36. e4 {[%clk 0:00:53]}  Bd4 {[%clk 0:00:29]} 37. exf5+ {[%clk 0:00:46]}  Kxf5 {[%clk 0:00:28]} 38. g4+ {[%clk 0:00:46]}  Kf6 {[%clk 0:00:28]} 39. Ke4 {[%clk 0:00:47]}  Bg1 {[%clk 0:00:26]} 40. h4 {[%clk 0:00:48]}  Kg7 {[%clk 0:00:24]} 41. h5 {[%clk 0:00:47]}  h6 {[%clk 0:00:22]} 42. f5 {[%clk 0:00:31]}  exf5+ {[%clk 0:00:20]} 43. gxf5 {[%clk 0:00:32]}  Bh2 {[%clk 0:00:13]} 44. f6+ {[%clk 0:00:22]}  Kh7 {[%clk 0:00:13]} 45. Kf5 {[%clk 0:00:22]}  Bd6 {[%clk 0:00:11]} 46. Rxd6 {[%clk 0:00:21]} 1-0


[Site "https://www.chess.com"]

[Event "Titled Tuesday Blitz April 12 Early 2022"]
[White "Belenkaya, Dina"]
[Black "Colas, Joshua"]
[WhiteFideId "24142654"]
[BlackFideId "2044447"]
[WhiteElo "2196"]
[BlackElo "2347"]
[Result "0-1"]
[Round "03"]
[TimeControl "180+1"]
[Date "2022.04.13"]
[WhiteClock "0:00:03"]
[BlackClock "0:00:28"]

1. Nf3 {[%clk 0:03:00]}  d5 {[%clk 0:02:55]} 2. g3 {[%clk 0:02:56]}  Nf6 {[%clk 0:02:46]} 3. Bg2 {[%clk 0:02:55]}  e6 {[%clk 0:02:46]} 4. O-O {[%clk 0:02:54]}  Be7 {[%clk 0:02:46]} 5. d3 {[%clk 0:02:55]}  O-O {[%clk 0:02:44]} 6. Nbd2 {[%clk 0:02:56]}  Nc6 {[%clk 0:02:45]} 7. c4 {[%clk 0:02:49]}  e5 {[%clk 0:02:42]} 8. e4 {[%clk 0:02:39]}  dxe4 {[%clk 0:02:38]} 9. dxe4 {[%clk 0:02:40]}  Qd3 {[%clk 0:02:34]} 10. Qb3 {[%clk 0:02:36]}  Qxb3 {[%clk 0:02:26]} 11. axb3 {[%clk 0:02:37]}  Bg4 {[%clk 0:02:21]} 12. Re1 {[%clk 0:02:35]}  Nb4 {[%clk 0:02:18]} 13. Rf1 {[%clk 0:02:26]}  Bxf3 {[%clk 0:02:10]} 14. Bxf3 {[%clk 0:02:24]}  Rfd8 {[%clk 0:02:10]} 15. Nb1 {[%clk 0:02:13]}  Rd3 {[%clk 0:02:00]} 16. Be2 {[%clk 0:02:05]}  Rd7 {[%clk 0:01:46]} 17. Nc3 {[%clk 0:02:02]}  Nc2 {[%clk 0:01:43]} 18. Ra4 {[%clk 0:01:58]}  Nd4 {[%clk 0:01:41]} 19. Bd1 {[%clk 0:01:58]}  a6 {[%clk 0:01:37]} 20. f3 {[%clk 0:01:57]}  Rad8 {[%clk 0:01:37]} 21. Be3 {[%clk 0:01:52]}  Bc5 {[%clk 0:01:29]} 22. Bf2 {[%clk 0:01:39]}  c6 {[%clk 0:01:19]} 23. b4 {[%clk 0:01:39]}  Bf8 {[%clk 0:01:14]} 24. c5 {[%clk 0:01:30]}  Ne8 {[%clk 0:01:08]} 25. Ra3 {[%clk 0:01:23]}  Nc7 {[%clk 0:01:02]} 26. Ra1 {[%clk 0:01:08]}  g6 {[%clk 0:00:59]} 27. Be3 {[%clk 0:01:08]}  h5 {[%clk 0:00:58]} 28. Bg5 {[%clk 0:01:02]}  Be7 {[%clk 0:00:56]} 29. Bxe7 {[%clk 0:01:02]}  Rxe7 {[%clk 0:00:57]} 30. f4 {[%clk 0:00:59]}  exf4 {[%clk 0:00:57]} 31. gxf4 {[%clk 0:01:00]}  Ncb5 {[%clk 0:00:55]} 32. e5 {[%clk 0:00:55]}  Nxc3 {[%clk 0:00:52]} 33. bxc3 {[%clk 0:00:56]}  Nf5 {[%clk 0:00:50]} 34. Bc2 {[%clk 0:00:56]}  Ne3 {[%clk 0:00:49]} 35. Rf2 {[%clk 0:00:57]}  Red7 {[%clk 0:00:48]} 36. Re1 {[%clk 0:00:40]}  Ng4 {[%clk 0:00:40]} 37. Rfe2 {[%clk 0:00:38]}  Re7 {[%clk 0:00:33]} 38. h3 {[%clk 0:00:35]}  Nh6 {[%clk 0:00:33]} 39. e6 {[%clk 0:00:35]}  f5 {[%clk 0:00:33]} 40. Kf2 {[%clk 0:00:31]}  Kg7 {[%clk 0:00:33]} 41. Bb3 {[%clk 0:00:18]}  Ng8 {[%clk 0:00:29]} 42. Re3 {[%clk 0:00:17]}  Nf6 {[%clk 0:00:30]} 43. Bc2 {[%clk 0:00:16]}  Nd5 {[%clk 0:00:30]} 44. Rd3 {[%clk 0:00:14]}  Rde8 {[%clk 0:00:31]} 45. c4 {[%clk 0:00:13]}  Nxf4 {[%clk 0:00:31]} 46. Rd7 {[%clk 0:00:12]}  Nxh3+ {[%clk 0:00:26]} 47. Kg3 {[%clk 0:00:12]}  Ng5 {[%clk 0:00:27]} 48. Kf4 {[%clk 0:00:07]}  Kf6 {[%clk 0:00:26]} 49. b5 {[%clk 0:00:05]}  Nxe6+ {[%clk 0:00:26]} 50. Rxe6+ {[%clk 0:00:03]}  Kxe6 {[%clk 0:00:26]} 51. bxc6 {[%clk 0:00:04]}  Rxd7 {[%clk 0:00:26]} 52. cxd7 {[%clk 0:00:04]}  Kxd7 {[%clk 0:00:27]} 53. Ba4+ {[%clk 0:00:04]}  Ke7 {[%clk 0:00:27]} 54. Bxe8 {[%clk 0:00:03]}  Kxe8 {[%clk 0:00:28]} 0-1


[Site "https://www.chess.com"]

[Event "Titled Tuesday Blitz April 12 Early 2022"]
[White "Bilan, Danila"]
[Black "Stribuk, Artiom"]
[WhiteFideId "24161918"]
[BlackFideId "13515659"]
[WhiteElo "2164"]
[BlackElo "2259"]
[Result "0-1"]
[Round "03"]
[TimeControl "180+1"]
[Date "2022.04.13"]
[WhiteClock "0:00:09"]
[BlackClock "0:00:06"]

1. d4 {[%clk 0:03:00]}  Nf6 {[%clk 0:02:57]} 2. Nf3 {[%clk 0:03:00]}  g6 {[%clk 0:02:57]} 3. Bg5 {[%clk 0:03:00]}  Bg7 {[%clk 0:02:56]} 4. c3 {[%clk 0:03:00]}  h6 {[%clk 0:02:49]} 5. Bh4 {[%clk 0:02:59]}  c5 {[%clk 0:02:46]} 6. e3 {[%clk 0:02:59]}  O-O {[%clk 0:02:40]} 7. Nbd2 {[%clk 0:02:58]}  d6 {[%clk 0:02:36]} 8. Bc4 {[%clk 0:02:54]}  b6 {[%clk 0:02:27]} 9. Bxf6 {[%clk 0:02:42]}  Bxf6 {[%clk 0:02:08]} 10. Bd5 {[%clk 0:02:42]}  cxd4 {[%clk 0:02:09]} 11. cxd4 {[%clk 0:02:25]}  Ba6 {[%clk 0:02:04]} 12. Bxa8 {[%clk 0:02:22]}  Nd7 {[%clk 0:02:02]} 13. Bd5 {[%clk 0:02:18]}  e6 {[%clk 0:01:51]} 14. Bc4 {[%clk 0:02:17]}  Bb7 {[%clk 0:01:43]} 15. O-O {[%clk 0:02:16]}  h5 {[%clk 0:01:40]} 16. Rc1 {[%clk 0:02:11]}  h4 {[%clk 0:01:39]} 17. h3 {[%clk 0:02:07]}  a6 {[%clk 0:01:36]} 18. Bd3 {[%clk 0:02:00]}  Kg7 {[%clk 0:01:25]} 19. Be4 {[%clk 0:01:59]}  d5 {[%clk 0:01:25]} 20. Bd3 {[%clk 0:01:59]}  Be7 {[%clk 0:01:21]} 21. Qe2 {[%clk 0:01:58]}  b5 {[%clk 0:01:04]} 22. a4 {[%clk 0:01:53]}  bxa4 {[%clk 0:01:02]} 23. Bxa6 {[%clk 0:01:53]}  Qb6 {[%clk 0:01:00]} 24. Bxb7 {[%clk 0:01:49]}  Qxb7 {[%clk 0:01:01]} 25. Nb1 {[%clk 0:01:39]}  Rb8 {[%clk 0:00:57]} 26. Nc3 {[%clk 0:01:39]}  Qb4 {[%clk 0:00:56]} 27. Ra1 {[%clk 0:01:35]}  Nb6 {[%clk 0:00:52]} 28. Qb5 {[%clk 0:01:26]}  Qd6 {[%clk 0:00:48]} 29. Ne5 {[%clk 0:01:18]}  Bf6 {[%clk 0:00:33]} 30. Nxa4 {[%clk 0:01:12]}  Nc8 {[%clk 0:00:24]} 31. Qc5 {[%clk 0:01:03]}  Bxe5 {[%clk 0:00:24]} 32. dxe5 {[%clk 0:01:01]}  Qd8 {[%clk 0:00:25]} 33. Qd4 {[%clk 0:00:56]}  Ne7 {[%clk 0:00:25]} 34. Rfc1 {[%clk 0:00:55]}  Nf5 {[%clk 0:00:26]} 35. Qg4 {[%clk 0:00:39]}  Qe7 {[%clk 0:00:25]} 36. Nc3 {[%clk 0:00:33]}  Rxb2 {[%clk 0:00:23]} 37. Rcb1 {[%clk 0:00:30]}  Rc2 {[%clk 0:00:22]} 38. Ne2 {[%clk 0:00:26]}  Rc4 {[%clk 0:00:22]} 39. Nd4 {[%clk 0:00:26]}  Nh6 {[%clk 0:00:18]} 40. Qf3 {[%clk 0:00:19]}  Ng8 {[%clk 0:00:12]} 41. Rb2 {[%clk 0:00:19]}  Qc7 {[%clk 0:00:12]} 42. Rab1 {[%clk 0:00:19]}  Qxe5 {[%clk 0:00:12]} 43. Rb7 {[%clk 0:00:18]}  Nf6 {[%clk 0:00:13]} 44. Ra7 {[%clk 0:00:17]}  Rc7 {[%clk 0:00:11]} 45. Rxc7 {[%clk 0:00:17]}  Qxc7 {[%clk 0:00:12]} 46. Qd1 {[%clk 0:00:17]}  Ne4 {[%clk 0:00:12]} 47. Nf3 {[%clk 0:00:17]}  Kh6 {[%clk 0:00:07]} 48. Qd4 {[%clk 0:00:16]}  g5 {[%clk 0:00:05]} 49. Qh8+ {[%clk 0:00:16]}  Kg6 {[%clk 0:00:05]} 50. Qb8 {[%clk 0:00:16]}  Qc2 {[%clk 0:00:04]} 51. Rf1 {[%clk 0:00:17]}  Nc3 {[%clk 0:00:04]} 52. Qg8+ {[%clk 0:00:16]}  Kh6 {[%clk 0:00:03]} 53. Qxg5+ {[%clk 0:00:17]}  Kh7 {[%clk 0:00:04]} 54. Qxh4+ {[%clk 0:00:17]}  Kg8 {[%clk 0:00:05]} 55. Qg5+ {[%clk 0:00:17]}  Kf8 {[%clk 0:00:05]} 56. Qd8+ {[%clk 0:00:17]}  Kg7 {[%clk 0:00:06]} 57. Qg5+ {[%clk 0:00:15]}  Kf8 {[%clk 0:00:06]} 58. Qf4 {[%clk 0:00:16]}  Ne2+ {[%clk 0:00:06]} 59. Kh2 {[%clk 0:00:16]}  Nxf4 {[%clk 0:00:07]} 60. exf4 {[%clk 0:00:17]}  Qe2 {[%clk 0:00:07]} 61. Re1 {[%clk 0:00:17]}  Qxf2 {[%clk 0:00:07]} 62. Rb1 {[%clk 0:00:17]}  Qe3 {[%clk 0:00:08]} 63. Rb4 {[%clk 0:00:17]}  Qc5 {[%clk 0:00:06]} 64. Rd4 {[%clk 0:00:17]}  Qd6 {[%clk 0:00:06]} 65. Kg3 {[%clk 0:00:18]}  f6 {[%clk 0:00:06]} 66. Rd2 {[%clk 0:00:17]}  e5 {[%clk 0:00:07]} 67. h4 {[%clk 0:00:15]}  e4 {[%clk 0:00:07]} 68. Nd4 {[%clk 0:00:15]}  Qa3+ {[%clk 0:00:07]} 69. Kg4 {[%clk 0:00:14]}  Qe3 {[%clk 0:00:07]} 70. Rd1 {[%clk 0:00:15]}  Qf2 {[%clk 0:00:05]} 71. Kf5 {[%clk 0:00:14]}  Qxg2 {[%clk 0:00:05]} 72. Ne6+ {[%clk 0:00:14]}  Ke7 {[%clk 0:00:05]} 73. Nd4 {[%clk 0:00:10]}  Qh3+ {[%clk 0:00:05]} 74. Kg6 {[%clk 0:00:10]}  Qg4+ {[%clk 0:00:05]} 75. Kh6 {[%clk 0:00:09]}  Qxd1 {[%clk 0:00:06]} 0-1


[Site "https://www.chess.com"]